Workbook

Sheet 2015 Dues Schedule
A1: 2015 Dues Schedule
A2: One Time Application Fee and Membership dues must be paid at time of application - $200
A3: Maryland Office - REALTOR Fees
A4: PRIMARY MARYLAND REALTOR MEMBERSHIP DUES SCHEDULE
B5: Jan | C5: Feb | D5: March | E5: April | F5: May | G5: June | H5: July | I5: August | J5: Sept | K5: October | L5: Nov | M5: Dec
A6: LOCAL | B6: 265 | C6: =ROUNDUP(SUM(B6/12)*11,2) -> 242.92 | D6: =ROUNDUP(SUM(B6/12)*10,2) -> 220.84 | E6: =ROUNDUP(SUM(B6/12)*9,2) -> 198.75 | F6: =ROUNDUP(SUM(B6/12)*8,0) -> 177 | G6: =ROUNDUP(SUM(B6/12)*7,2) -> 154.59 | H6: =ROUNDUP(SUM(B6/12)*6,2) -> 132.5 | I6: =ROUNDUP(SUM(B6/12)*5,2) -> 110.42 | J6: =ROUNDUP(SUM(B6/12)*4,2) -> 88.34 | K6: =ROUNDUP(SUM(B6/12)*3,2) -> 66.25 | L6: =ROUNDUP(SUM(B6/12)*2,2) -> 44.17 | M6: =ROUNDUP(SUM(B6/12)*1,2) -> 22.09
A7: State MD | B7: 219 | C7: 219 | D7: 219 | E7: 219 | F7: 122 | G7: 122 | H7: 122 | I7: 122 | J7: 122 | K7: 122 | L7: 122 | M7: 122
A8: NAR Image Campaign Assessment | B8: 35 | C8: 35 | D8: 35 | E8: 35 | F8: 35 | G8: 35 | H8: 35 | I8: 35 | J8: 35 | K8: 35 | L8: 35 | M8: 35
A9: National | B9: 120 | C9: =ROUNDUP(SUM((B9)/12)*11,2) -> 110 | D9: =ROUNDUP(SUM((B9)/12)*10,2) -> 100 | E9: =ROUNDUP(SUM((B9)/12)*9,2) -> 90 | F9: =ROUNDUP(SUM((B9)/12)*8,2) -> 80 | G9: =ROUNDUP(SUM((B9)/12)*7,2) -> 70 | H9: =ROUNDUP(SUM((B9)/12)*6,2) -> 60 | I9: =ROUNDUP(SUM((B9)/12)*5,2) -> 50 | J9: =ROUNDUP(SUM((B9)/12)*4,2) -> 40 | K9: =ROUNDUP(SUM((B9)/12)*3,2) -> 30 | L9: =ROUNDUP(SUM((B9)/12)*2,2) -> 20 | M9: =ROUNDUP(SUM((B9)/12)*1,2) -> 10
A10: Total MD | B10: =SUM(B6:B9) -> 639 | C10: =SUM(C6:C9) -> 606.92 | D10: =SUM(D6:D9) -> 574.84 | E10: 542.75 | F10: 414 | G10: 381.59 | H10: 349.5 | I10: 317.42 | J10: 285.34 | K10: 253.25 | L10: 221.17 | M10: 189.09
A11: The non-deductible portion of MAR 2015 dues attributive to lobbying is $46, the non-deductible portion of NAR 2015 dues is $44.00
A12: Pennsylvania Office - REALTOR Fees
A13: PRIMARY PENNSYLVANIA REALTOR MEMBERSHIP DUES SCHEDULE
B14: Jan | C14: Feb | D14: March | E14: April | F14: May | G14: June | H14: July | I14: August | J14: Sept | K14: October | L14: Nov | M14: Dec
A15: LOCAL | B15: 265 | C15: =ROUNDUP(SUM(B15/12)*11,2) -> 242.92 | D15: =ROUNDUP(SUM(B15/12)*10,2) -> 220.84 | E15: =ROUNDUP(SUM(B15/12)*9,2) -> 198.75 | F15: =ROUNDUP(SUM(B15/12)*8,0) -> 177 | G15: =ROUNDUP(SUM(B15/12)*7,2) -> 154.59 | H15: =ROUNDUP(SUM(B15/12)*6,2) -> 132.5 | I15: =ROUNDUP(SUM(B15/12)*5,2) -> 110.42 | J15: =ROUNDUP(SUM(B15/12)*4,2) -> 88.34 | K15: =ROUNDUP(SUM(B15/12)*3,2) -> 66.25 | L15: =ROUNDUP(SUM(B15/12)*2,2) -> 44.17 | M15: =ROUNDUP(SUM(B15/12)*1,2) -> 22.09
A16: State PA | B16: 130 | C16: =ROUNDUP(SUM(B16/12)*11,2) -> 119.17 | D16: =ROUNDUP(SUM(B16/12)*10,2) -> 108.34 | E16: =ROUNDUP(SUM(B16/12)*9,2) -> 97.5 | F16: =ROUNDUP(SUM(B16/12)*8,2) -> 86.67 | G16: =ROUNDUP(SUM(B16/12)*7,2) -> 75.84 | H16: =ROUNDUP(SUM(B16/12)*6,2) -> 65 | I16: =ROUNDUP(SUM(B16/12)*5,2) -> 54.17 | J16: =ROUNDUP(SUM(B16/12)*4,2) -> 43.34 | K16: =ROUNDUP(SUM(B16/12)*3,2) -> 32.5 | L16: =ROUNDUP(SUM(B16/12)*2,2) -> 21.67 | M16: =ROUNDUP(SUM(B16/12)*1,2) -> 10.84
A17: NAR Image Campaign Assessment | B17: 35 | C17: 35 | D17: 35 | E17: 35 | F17: 35 | G17: 35 | H17: 35 | I17: 35 | J17: 35 | K17: 35 | L17: 35 | M17: 35
A18: National | B18: 120 | C18: =ROUNDUP(SUM((B18)/12)*11,2) -> 110 | D18: =ROUNDUP(SUM((B18)/12)*10,2) -> 100 | E18: =ROUNDUP(SUM((B18)/12)*9,2) -> 90 | F18: =ROUNDUP(SUM((B18)/12)*8,2) -> 80 | G18: =ROUNDUP(SUM((B18)/12)*7,2) -> 70 | H18: =ROUNDUP(SUM((B18)/12)*6,2) -> 60 | I18: =ROUNDUP(SUM((B18)/12)*5,2) -> 50 | J18: =ROUNDUP(SUM((B18)/12)*4,2) -> 40 | K18: =ROUNDUP(SUM((B18)/12)*3,2) -> 30 | L18: =ROUNDUP(SUM((B18)/12)*2,2) -> 20 | M18: =ROUNDUP(SUM((B18)/12)*1,2) -> 10
A19: Sub-Total PA | B19: =SUM(B15:B18) -> 550 | C19: 507.09 | D19: 464.18 | E19: 421.25 | F19: 378.67 | G19: 335.43 | H19: 292.5 | I19: 249.59 | J19: 206.68 | K19: 163.75 | L19: 120.84 | M19: 77.93
A20: PAR Cap. Inv Fee for New Members Only | B20: 65 | C20: 65 | D20: 65 | E20: 65 | F20: 65 | G20: 65 | H20: 65 | I20: 65 | J20: 65 | K20: 65 | L20: 65 | M20: 65
A21: Total PA | B21: =SUM(B19+B20) -> 615 | C21: 572.09 | D21: 529.18 | E21: 486.25 | F21: 443.67 | G21: 400.43 | H21: 357.5 | I21: 314.59 | J21: 271.68 | K21: 228.75 | L21: 185.84 | M21: 142.93
A22: The non-deductible portion of PAR 2015 dues attributive to lobbying is $11.00, the non-deductible portion of NAR 2015 dues is $44.00
A23: SECONDARY REALTOR MEMBERSHIP DUES SCHEDULE
A24: Pen-Mar Secondary Membership without SentriLock Card Service
B25: Jan | C25: Feb | D25: March | E25: April | F25: May | G25: June | H25: July | I25: August | J25: Sept | K25: October | L25: Nov | M25: Dec
A26: LOCAL | B26: 215 | C26: =ROUNDUP(SUM(B26/12)*11,2) -> 197.09 | D26: =ROUNDUP(SUM(B26/12)*10,2) -> 179.17 | E26: =ROUNDUP(SUM(B26/12)*9,2) -> 161.25 | F26: =ROUNDUP(SUM(B26/12)*8,0) -> 144 | G26: =ROUNDUP(SUM(B26/12)*7,2) -> 125.42 | H26: =ROUNDUP(SUM(B26/12)*6,2) -> 107.5 | I26: =ROUNDUP(SUM(B26/12)*5,2) -> 89.59 | J26: =ROUNDUP(SUM(B26/12)*4,2) -> 71.67 | K26: =ROUNDUP(SUM(B26/12)*3,2) -> 53.75 | L26: =ROUNDUP(SUM(B26/12)*2,2) -> 35.84 | M26: =ROUNDUP(SUM(B26/12)*1,2) -> 17.92
A28: Pen-Mar Secondary Membership with SentriLock Card Service
B29: Jan | C29: Feb | D29: March | E29: April | F29: May | G29: June | H29: July | I29: August | J29: Sept | K29: October | L29: Nov | M29: Dec
A30: LOCAL | B30: 265 | C30: =ROUNDUP(SUM(B30/12)*11,2) -> 242.92 | D30: =ROUNDUP(SUM(B30/12)*10,2) -> 220.84 | E30: =ROUNDUP(SUM(B30/12)*9,2) -> 198.75 | F30: =ROUNDUP(SUM(B30/12)*8,0) -> 177 | G30: =ROUNDUP(SUM(B30/12)*7,2) -> 154.59 | H30: =ROUNDUP(SUM(B30/12)*6,2) -> 132.5 | I30: =ROUNDUP(SUM(B30/12)*5,2) -> 110.42 | J30: =ROUNDUP(SUM(B30/12)*4,2) -> 88.34 | K30: =ROUNDUP(SUM(B30/12)*3,2) -> 66.25 | L30: =ROUNDUP(SUM(B30/12)*2,2) -> 44.17 | M30: =ROUNDUP(SUM(B30/12)*1,2) -> 22.09
A32: Secondary State Membership
A33: PAR Secondary | B33: 130 | C33: =ROUNDUP(SUM(B33/12)*11,2) -> 119.17 | D33: =ROUNDUP(SUM(B33/12)*10,2) -> 108.34 | E33: =ROUNDUP(SUM(B33/12)*9,2) -> 97.5 | F33: =ROUNDUP(SUM(B33/12)*8,2) -> 86.67 | G33: =ROUNDUP(SUM(B33/12)*7,2) -> 75.84 | H33: =ROUNDUP(SUM(B33/12)*6,2) -> 65 | I33: =ROUNDUP(SUM(B33/12)*5,2) -> 54.17 | J33: =ROUNDUP(SUM(B33/12)*4,2) -> 43.34 | K33: =ROUNDUP(SUM(B33/12)*3,2) -> 32.5 | L33: =ROUNDUP(SUM(B33/12)*2,2) -> 21.67 | M33: =ROUNDUP(SUM(B33/12)*1,2) -> 10.84
A34: MAR Secondary | B34: 136 | C34: =B34 -> 136 | D34: =B34 -> 136 | E34: =B34 -> 136 | F34: 80.5 | G34: 80.5 | H34: 80.5 | I34: 80.5 | J34: 80.5 | K34: 80.5 | L34: 80.5 | M34: 80.5
A36: SentriLock Lockbox Service (optional)
B37: Jan | C37: Feb | D37: March | E37: April | F37: May | G37: June | H37: July | I37: August | J37: Sept | K37: October | L37: Nov | M37: Dec
A38: SentriLock Lockbox Service | B38: 125 | C38: =ROUNDUP(SUM(B38/12)*11,2) -> 114.59 | D38: =ROUNDUP(SUM(B38/12)*10,2) -> 104.17 | E38: =ROUNDUP(SUM(B38/12)*9,2) -> 93.75 | F38: =ROUNDUP(SUM(B38/12)*8,0) -> 84 | G38: =ROUNDUP(SUM(B38/12)*7,2) -> 72.92 | H38: =ROUNDUP(SUM(B38/12)*6,2) -> 62.5 | I38: =ROUNDUP(SUM(B38/12)*5,2) -> 52.09 | J38: =ROUNDUP(SUM(B38/12)*4,2) -> 41.67 | K38: =ROUNDUP(SUM(B38/12)*3,2) -> 31.25 | L38: =ROUNDUP(SUM(B38/12)*2,2) -> 20.84 | M38: =ROUNDUP(SUM(B38/12)*1,2) -> 10.42
A40: NOTE: The application fee is a one-time fee unless you drop membership for over one year. | H40: New Firm Fee: (one time fee) | K40: 350
A41: Reinstatement fee of $100.00 is applied for after 30 days from termination of membership up to one year. | H41: New Branch Fee: (one time fee) | K41: 100
A42: Primary State Membership is determined by the state in which office is located. | H42: Member/Office License Change Fee | K42: 10
B43: If PA license hangs with office located in MD, State Membership would be Maryland and visa versa.
A44: revised: Oct 27, 2014

Sheet Projected 2016 Dues Schedule
A1: 2017 Dues Schedule
A2: One Time Application Fee and Membership dues must be paid at time of application - $250
A3: Maryland Office - REALTOR Fees
A4: PRIMARY MARYLAND REALTOR MEMBERSHIP DUES SCHEDULE
B5: Jan | C5: Feb | D5: March | E5: April | F5: May | G5: June | H5: July | I5: August | J5: Sept | K5: October | L5: Nov | M5: Dec
A6: LOCAL | B6: 305 | C6: 279.58 | D6: 254.17 | E6: 228.75 | F6: 203.33 | G6: 177.92 | H6: 152.5 | I6: 127.08 | J6: 101.67 | K6: 76.25 | L6: 50.83 | M6: 25.42
A7: State MD | B7: 227 | C7: 227 | D7: 227 | E7: 227 | F7: 126 | G7: 126 | H7: 126 | I7: 126 | J7: 126 | K7: 126 | L7: 126 | M7: 126
A8: NAR Image Campaign Assessment | B8: 35 | C8: 35 | D8: 35 | E8: 35 | F8: 35 | G8: 35 | H8: 35 | I8: 35 | J8: 35 | K8: 35 | L8: 35 | M8: 35
A9: National | B9: 120 | C9: =ROUNDUP(SUM((B9)/12)*11,2) -> 110 | D9: =ROUNDUP(SUM((B9)/12)*10,2) -> 100 | E9: =ROUNDUP(SUM((B9)/12)*9,2) -> 90 | F9: =ROUNDUP(SUM((B9)/12)*8,2) -> 80 | G9: =ROUNDUP(SUM((B9)/12)*7,2) -> 70 | H9: =ROUNDUP(SUM((B9)/12)*6,2) -> 60 | I9: =ROUNDUP(SUM((B9)/12)*5,2) -> 50 | J9: =ROUNDUP(SUM((B9)/12)*4,2) -> 40 | K9: =ROUNDUP(SUM((B9)/12)*3,2) -> 30 | L9: =ROUNDUP(SUM((B9)/12)*2,2) -> 20 | M9: =ROUNDUP(SUM((B9)/12)*1,2) -> 10
A10: Total MD | B10: =SUM(B6:B9) -> 687 | C10: =SUM(C6:C9) -> 651.58 | D10: =SUM(D6:D9) -> 616.17 | E10: 580.75 | F10: 444.33 | G10: 408.92 | H10: 373.5 | I10: 338.08 | J10: 302.67 | K10: 267.25 | L10: 231.83 | M10: 196.42
A11: The non-deductible portion of MAR 2016 dues attributive to lobbying is $45, the non-deductible portion on NAR 2017 dues is $50
A12: Pennsylvania Office - REALTOR Fees
A13: PRIMARY PENNSYLVANIA REALTOR MEMBERSHIP DUES SCHEDULE
B14: Jan | C14: Feb | D14: March | E14: April | F14: May | G14: June | H14: July | I14: August | J14: Sept | K14: October | L14: Nov | M14: Dec
A15: LOCAL | B15: 305 | C15: 279.58 | D15: 254.17 | E15: 228.75 | F15: 203.33 | G15: 177.92 | H15: 152.5 | I15: 127.08 | J15: 101.67 | K15: 76.25 | L15: 50.83 | M15: 25.42
A16: State PA | B16: 130 | C16: =ROUNDUP(SUM(B16/12)*11,2) -> 119.17 | D16: =ROUNDUP(SUM(B16/12)*10,2) -> 108.34 | E16: =ROUNDUP(SUM(B16/12)*9,2) -> 97.5 | F16: =ROUNDUP(SUM(B16/12)*8,2) -> 86.67 | G16: =ROUNDUP(SUM(B16/12)*7,2) -> 75.84 | H16: =ROUNDUP(SUM(B16/12)*6,2) -> 65 | I16: =ROUNDUP(SUM(B16/12)*5,2) -> 54.17 | J16: =ROUNDUP(SUM(B16/12)*4,2) -> 43.34 | K16: =ROUNDUP(SUM(B16/12)*3,2) -> 32.5 | L16: =ROUNDUP(SUM(B16/12)*2,2) -> 21.67 | M16: =ROUNDUP(SUM(B16/12)*1,2) -> 10.84
A17: NAR Image Campaign Assessment | B17: 35 | C17: 35 | D17: 35 | E17: 35 | F17: 35 | G17: 35 | H17: 35 | I17: 35 | J17: 35 | K17: 35 | L17: 35 | M17: 35
A18: National | B18: 120 | C18: =ROUNDUP(SUM((B18)/12)*11,2) -> 110 | D18: =ROUNDUP(SUM((B18)/12)*10,2) -> 100 | E18: =ROUNDUP(SUM((B18)/12)*9,2) -> 90 | F18: =ROUNDUP(SUM((B18)/12)*8,2) -> 80 | G18: =ROUNDUP(SUM((B18)/12)*7,2) -> 70 | H18: =ROUNDUP(SUM((B18)/12)*6,2) -> 60 | I18: =ROUNDUP(SUM((B18)/12)*5,2) -> 50 | J18: =ROUNDUP(SUM((B18)/12)*4,2) -> 40 | K18: =ROUNDUP(SUM((B18)/12)*3,2) -> 30 | L18: =ROUNDUP(SUM((B18)/12)*2,2) -> 20 | M18: =ROUNDUP(SUM((B18)/12)*1,2) -> 10
A19: Sub-Total PA | B19: =SUM(B15:B18) -> 590 | C19: 543.75 | D19: 497.51 | E19: 451.25 | F19: 405 | G19: 358.76 | H19: 312.5 | I19: 266.25 | J19: 220.01 | K19: 173.75 | L19: 127.5 | M19: 81.26
A20: PAR Cap. Inv Fee for New Members Only | B20: 65 | C20: 65 | D20: 65 | E20: 65 | F20: 65 | G20: 65 | H20: 65 | I20: 65 | J20: 65 | K20: 65 | L20: 65 | M20: 65
A21: Total PA | B21: =SUM(B19+B20) -> 655 | C21: 608.75 | D21: 562.51 | E21: 516.25 | F21: 470 | G21: 423.76 | H21: 377.5 | I21: 331.25 | J21: 285.01 | K21: 238.75 | L21: 192.5 | M21: 146.26
A22: The non-deductible portion of PAR 2016 dues attributive to lobbying is $11.00, the non-deductible portion of NAR 2016 dues is $50
A23: SECONDARY REALTOR MEMBERSHIP DUES SCHEDULE
A24: Pen-Mar Secondary Membership without SentriLock Card Service
B25: Jan | C25: Feb | D25: March | E25: April | F25: May | G25: June | H25: July | I25: August | J25: Sept | K25: October | L25: Nov | M25: Dec
A26: LOCAL | B26: 255 | C26: 233.75 | D26: 212.5 | E26: 191.25 | F26: 170 | G26: 148.75 | H26: 127.5 | I26: 106.25 | J26: 85 | K26: 63.75 | L26: 42.5 | M26: =ROUNDUP(SUM(B26/12)*1,2) -> 21.25
A28: Pen-Mar Secondary Membership with SentriLock Card Service
B29: Jan | C29: Feb | D29: March | E29: April | F29: May | G29: June | H29: July | I29: August | J29: Sept | K29: October | L29: Nov | M29: Dec
A30: LOCAL | B30: 305 | C30: 279.58 | D30: 254.17 | E30: 228.75 | F30: 203.33 | G30: 177.92 | H30: 152.5 | I30: 127.08 | J30: 101.67 | K30: 76.25 | L30: 50.83 | M30: 25.42
A32: Secondary State Membership
A33: PAR Secondary | B33: 130 | C33: =ROUNDUP(SUM(B33/12)*11,2) -> 119.17 | D33: =ROUNDUP(SUM(B33/12)*10,2) -> 108.34 | E33: =ROUNDUP(SUM(B33/12)*9,2) -> 97.5 | F33: =ROUNDUP(SUM(B33/12)*8,2) -> 86.67 | G33: =ROUNDUP(SUM(B33/12)*7,2) -> 75.84 | H33: =ROUNDUP(SUM(B33/12)*6,2) -> 65 | I33: =ROUNDUP(SUM(B33/12)*5,2) -> 54.17 | J33: =ROUNDUP(SUM(B33/12)*4,2) -> 43.34 | K33: =ROUNDUP(SUM(B33/12)*3,2) -> 32.5 | L33: =ROUNDUP(SUM(B33/12)*2,2) -> 21.67 | M33: =ROUNDUP(SUM(B33/12)*1,2) -> 10.84
A34: MAR Secondary | B34: 140 | C34: 140 | D34: =B34 -> 140 | E34: =B34 -> 140 | F34: 82.5 | G34: 82.5 | H34: 82.5 | I34: 82.5 | J34: 82.5 | K34: 82.5 | L34: 82.5 | M34: 82.5
A36: NOTE: The application fee is a one-time fee unless you drop membership for over one year. | H36: New Firm Fee: (one time fee) | K36: 350
A37: Reinstatement fee of $100.00 is applied for after 30 days from termination of membership up to one year. | H37: New Branch Fee: (one time fee) | K37: 100
A38: Primary State Membership is determined by the state in which office is located. | H38: Member/Office License Change Fee | K38: 20
B39: If PA license hangs with office located in MD, State Membership would be Maryland and visa versa.
A40: revised: July 29, 2016

Sheet 2014 Dues Schedule
A1: 2014 Dues Schedule
A2: One Time Application Fee and Membership dues must be paid at time of application - $160
A3: Maryland Office - REALTOR Fees
A4: PRIMARY MARYLAND REALTOR MEMBERSHIP DUES SCHEDULE
B5: Jan | C5: Feb | D5: March | E5: April | F5: May | G5: June | H5: July | I5: August | J5: Sept | K5: October | L5: Nov | M5: Dec
A6: LOCAL | B6: 195 | C6: =ROUNDUP(SUM(B6/12)*11,2) -> 178.75 | D6: =ROUNDUP(SUM(B6/12)*10,2) -> 162.5 | E6: =ROUNDUP(SUM(B6/12)*9,2) -> 146.25 | F6: =ROUNDUP(SUM(B6/12)*8,0) -> 130 | G6: =ROUNDUP(SUM(B6/12)*7,2) -> 113.75 | H6: =ROUNDUP(SUM(B6/12)*6,2) -> 97.5 | I6: =ROUNDUP(SUM(B6/12)*5,2) -> 81.25 | J6: =ROUNDUP(SUM(B6/12)*4,2) -> 65 | K6: =ROUNDUP(SUM(B6/12)*3,2) -> 48.75 | L6: =ROUNDUP(SUM(B6/12)*2,2) -> 32.5 | M6: =ROUNDUP(SUM(B6/12)*1,2) -> 16.25
A7: State MD | B7: 215 | C7: 215 | D7: 215 | E7: 215 | F7: 120 | G7: 120 | H7: 120 | I7: 120 | J7: 120 | K7: 120 | L7: 120 | M7: 120
A8: NAR Image Campaign Assessment | B8: 35 | C8: 35 | D8: 35 | E8: 35 | F8: 35 | G8: 35 | H8: 35 | I8: 35 | J8: 35 | K8: 35 | L8: 35 | M8: 35
A9: National | B9: 120 | C9: =ROUNDUP(SUM((B9)/12)*11,2) -> 110 | D9: =ROUNDUP(SUM((B9)/12)*10,2) -> 100 | E9: =ROUNDUP(SUM((B9)/12)*9,2) -> 90 | F9: =ROUNDUP(SUM((B9)/12)*8,2) -> 80 | G9: =ROUNDUP(SUM((B9)/12)*7,2) -> 70 | H9: =ROUNDUP(SUM((B9)/12)*6,2) -> 60 | I9: =ROUNDUP(SUM((B9)/12)*5,2) -> 50 | J9: =ROUNDUP(SUM((B9)/12)*4,2) -> 40 | K9: =ROUNDUP(SUM((B9)/12)*3,2) -> 30 | L9: =ROUNDUP(SUM((B9)/12)*2,2) -> 20 | M9: =ROUNDUP(SUM((B9)/12)*1,2) -> 10
A10: Total MD | B10: =SUM(B6:B9) -> 565 | C10: =SUM(C6:C9) -> 538.75 | D10: =SUM(D6:D9) -> 512.5 | E10: 486.25 | F10: 365 | G10: 338.75 | H10: 312.5 | I10: 286.25 | J10: 260 | K10: 233.75 | L10: 207.5 | M10: 181.25
A11: The non-deductible portion of MAR 2014 dues attributive to lobbying is $46.
A12: Pennsylvania Office - REALTOR Fees
A13: PRIMARY PENNSYLVANIA REALTOR MEMBERSHIP DUES SCHEDULE
B14: Jan | C14: Feb | D14: March | E14: April | F14: May | G14: June | H14: July | I14: August | J14: Sept | K14: October | L14: Nov | M14: Dec
A15: LOCAL | B15: 195 | C15: =ROUNDUP(SUM(B15/12)*11,2) -> 178.75 | D15: =ROUNDUP(SUM(B15/12)*10,2) -> 162.5 | E15: =ROUNDUP(SUM(B15/12)*9,2) -> 146.25 | F15: =ROUNDUP(SUM(B15/12)*8,0) -> 130 | G15: =ROUNDUP(SUM(B15/12)*7,2) -> 113.75 | H15: =ROUNDUP(SUM(B15/12)*6,2) -> 97.5 | I15: =ROUNDUP(SUM(B15/12)*5,2) -> 81.25 | J15: =ROUNDUP(SUM(B15/12)*4,2) -> 65 | K15: =ROUNDUP(SUM(B15/12)*3,2) -> 48.75 | L15: =ROUNDUP(SUM(B15/12)*2,2) -> 32.5 | M15: =ROUNDUP(SUM(B15/12)*1,2) -> 16.25
A16: State PA | B16: 130 | C16: =ROUNDUP(SUM(B16/12)*11,2) -> 119.17 | D16: =ROUNDUP(SUM(B16/12)*10,2) -> 108.34 | E16: =ROUNDUP(SUM(B16/12)*9,2) -> 97.5 | F16: =ROUNDUP(SUM(B16/12)*8,2) -> 86.67 | G16: =ROUNDUP(SUM(B16/12)*7,2) -> 75.84 | H16: =ROUNDUP(SUM(B16/12)*6,2) -> 65 | I16: =ROUNDUP(SUM(B16/12)*5,2) -> 54.17 | J16: =ROUNDUP(SUM(B16/12)*4,2) -> 43.34 | K16: =ROUNDUP(SUM(B16/12)*3,2) -> 32.5 | L16: =ROUNDUP(SUM(B16/12)*2,2) -> 21.67 | M16: =ROUNDUP(SUM(B16/12)*1,2) -> 10.84
A17: NAR Image Campaign Assessment | B17: 35 | C17: 35 | D17: 35 | E17: 35 | F17: 35 | G17: 35 | H17: 35 | I17: 35 | J17: 35 | K17: 35 | L17: 35 | M17: 35
A18: National | B18: 120 | C18: =ROUNDUP(SUM((B18)/12)*11,2) -> 110 | D18: =ROUNDUP(SUM((B18)/12)*10,2) -> 100 | E18: =ROUNDUP(SUM((B18)/12)*9,2) -> 90 | F18: =ROUNDUP(SUM((B18)/12)*8,2) -> 80 | G18: =ROUNDUP(SUM((B18)/12)*7,2) -> 70 | H18: =ROUNDUP(SUM((B18)/12)*6,2) -> 60 | I18: =ROUNDUP(SUM((B18)/12)*5,2) -> 50 | J18: =ROUNDUP(SUM((B18)/12)*4,2) -> 40 | K18: =ROUNDUP(SUM((B18)/12)*3,2) -> 30 | L18: =ROUNDUP(SUM((B18)/12)*2,2) -> 20 | M18: =ROUNDUP(SUM((B18)/12)*1,2) -> 10
A19: Sub-Total PA | B19: =SUM(B15:B18) -> 480 | C19: 442.92 | D19: 405.84 | E19: 368.75 | F19: 331.67 | G19: 294.59 | H19: 257.5 | I19: 220.42 | J19: 183.34 | K19: 146.25 | L19: 109.17 | M19: 72.09
A20: PAR Cap. Inv Fee for New Members Only | B20: 65 | C20: 65 | D20: 65 | E20: 65 | F20: 65 | G20: 65 | H20: 65 | I20: 65 | J20: 65 | K20: 65 | L20: 65 | M20: 65
A21: Total PA | B21: =SUM(B19+B20) -> 545 | C21: 507.92 | D21: 470.84 | E21: 433.75 | F21: 396.67 | G21: 359.59 | H21: 322.5 | I21: 285.42 | J21: 248.34 | K21: 211.25 | L21: 174.17 | M21: 137.09
A22: The non-deductible portion of PAR 2014 dues attributive to lobbying is $11.00
A23: SECONDARY REALTOR MEMBERSHIP DUES SCHEDULE
A24: Pen-Mar Secondary Membership
B25: Jan | C25: Feb | D25: March | E25: April | F25: May | G25: June | H25: July | I25: August | J25: Sept | K25: October | L25: Nov | M25: Dec
A26: LOCAL | B26: 195 | C26: =ROUNDUP(SUM(B26/12)*11,2) -> 178.75 | D26: =ROUNDUP(SUM(B26/12)*10,2) -> 162.5 | E26: =ROUNDUP(SUM(B26/12)*9,2) -> 146.25 | F26: =ROUNDUP(SUM(B26/12)*8,0) -> 130 | G26: =ROUNDUP(SUM(B26/12)*7,2) -> 113.75 | H26: =ROUNDUP(SUM(B26/12)*6,2) -> 97.5 | I26: =ROUNDUP(SUM(B26/12)*5,2) -> 81.25 | J26: =ROUNDUP(SUM(B26/12)*4,2) -> 65 | K26: =ROUNDUP(SUM(B26/12)*3,2) -> 48.75 | L26: =ROUNDUP(SUM(B26/12)*2,2) -> 32.5 | M26: =ROUNDUP(SUM(B26/12)*1,2) -> 16.25
A28: Secondary State Membership
A29: PAR Secondary | B29: 130 | C29: =ROUNDUP(SUM(B29/12)*11,2) -> 119.17 | D29: =ROUNDUP(SUM(B29/12)*10,2) -> 108.34 | E29: =ROUNDUP(SUM(B29/12)*9,2) -> 97.5 | F29: =ROUNDUP(SUM(B29/12)*8,2) -> 86.67 | G29: =ROUNDUP(SUM(B29/12)*7,2) -> 75.84 | H29: =ROUNDUP(SUM(B29/12)*6,2) -> 65 | I29: =ROUNDUP(SUM(B29/12)*5,2) -> 54.17 | J29: =ROUNDUP(SUM(B29/12)*4,2) -> 43.34 | K29: =ROUNDUP(SUM(B29/12)*3,2) -> 32.5 | L29: =ROUNDUP(SUM(B29/12)*2,2) -> 21.67 | M29: =ROUNDUP(SUM(B29/12)*1,2) -> 10.84
A30: MAR Secondary | B30: 134 | C30: =B30 -> 134 | D30: =B30 -> 134 | E30: =B30 -> 134 | F30: 79.5 | G30: 79.5 | H30: 79.5 | I30: 79.5 | J30: 79.5 | K30: 79.5 | L30: 79.5 | M30: 79.5
A32: NOTE: The application fee is a one-time fee unless you drop membership for over one year. | H32: New Firm Fee: (one time fee) | K32: 350
A33: Reinstatement fee of $80.00 is applied for after 30 days from termination of membership up to one year. | H33: New Branch Fee: (one time fee) | K33: 100
A34: Primary State Membership is determined by the state in which office is located. | H34: Member/Office License Change Fee | K34: 10
B35: If PA license hangs with office located in MD, State Membership would be Maryland and visa versa.
A36: revised: March 2014

Sheet 2013 Dues Schedule
F1: 2013
A2: PRIMARY MARYLAND REALTOR MEMBERSHIP DUES SCHEDULE
B3: Jan | C3: Feb | D3: March | E3: April | F3: May | G3: June | H3: July | I3: August | J3: Sept | K3: October | L3: Nov | M3: Dec
A4: LOCAL | B4: 195 | C4: =ROUNDUP(SUM(B4/12)*11,2) -> 178.75 | D4: =ROUNDUP(SUM(B4/12)*10,2) -> 162.5 | E4: =ROUNDUP(SUM(B4/12)*9,2) -> 146.25 | F4: =ROUNDUP(SUM(B4/12)*8,0) -> 130 | G4: =ROUNDUP(SUM(B4/12)*7,2) -> 113.75 | H4: =ROUNDUP(SUM(B4/12)*6,2) -> 97.5 | I4: =ROUNDUP(SUM(B4/12)*5,2) -> 81.25 | J4: =ROUNDUP(SUM(B4/12)*4,2) -> 65 | K4: =ROUNDUP(SUM(B4/12)*3,2) -> 48.75 | L4: =ROUNDUP(SUM(B4/12)*2,2) -> 32.5 | M4: =ROUNDUP(SUM(B4/12)*1,2) -> 16.25
A5: State MD | B5: 181 | C5: =B5 -> 181 | D5: =B5 -> 181 | E5: =B5 -> 181 | F5: =ROUNDUP(SUM(B5/2),2) -> 90.5 | G5: =ROUNDUP(SUM(B5/2),2) -> 90.5 | H5: =ROUNDUP(SUM(B5/2),2) -> 90.5 | I5: =ROUNDUP(SUM(B5/2),2) -> 90.5 | J5: =ROUNDUP(SUM(B5/2),2) -> 90.5 | K5: =ROUNDUP(SUM(B5/2),2) -> 90.5 | L5: 0 | M5: 0
A6: National | B6: =SUM(120+35) -> 155 | C6: =ROUNDUP(SUM((B6-35)/12)*11,2)+35 -> 145 | D6: =ROUNDUP(SUM((B6-35)/12)*10,2)+35 -> 135 | E6: =ROUNDUP(SUM((B6-35)/12)*9,2)+35 -> 125 | F6: =ROUNDUP(SUM((B6-35)/12)*8,2)+35 -> 115 | G6: =ROUNDUP(SUM((B6-35)/12)*7,2)+35 -> 105 | H6: =ROUNDUP(SUM((B6-35)/12)*6,2)+35 -> 95 | I6: =ROUNDUP(SUM((B6-35)/12)*5,2)+35 -> 85 | J6: =ROUNDUP(SUM((B6-35)/12)*4,2)+35 -> 75 | K6: =ROUNDUP(SUM((B6-35)/12)*3,2)+35 -> 65 | L6: =ROUNDUP(SUM((B6-35)/12)*2,2)+35 -> 55 | M6: =ROUNDUP(SUM((B6-35)/12)*1,2)+35 -> 45
A7: Total MD | B7: =SUM(B4+B5+B6) -> 531 | C7: 504.75 | D7: 478.5 | E7: 452.25 | F7: 335.5 | G7: 309.25 | H7: 283 | I7: 256.75 | J7: 230.5 | K7: 204.25 | L7: 87.5 | M7: 61.25
A8: Primary Members can join the PA Association as Secondary State Member for $105
A10: PRIMARY PENNSYLVANIA REALTOR MEMBERSHIP DUES SCHEDULE
A11: LOCAL | B11: 195 | C11: =ROUNDUP(SUM(B11/12)*11,2) -> 178.75 | D11: =ROUNDUP(SUM(B11/12)*10,2) -> 162.5 | E11: =ROUNDUP(SUM(B11/12)*9,2) -> 146.25 | F11: =ROUNDUP(SUM(B11/12)*8,0) -> 130 | G11: =ROUNDUP(SUM(B11/12)*7,2) -> 113.75 | H11: =ROUNDUP(SUM(B11/12)*6,2) -> 97.5 | I11: =ROUNDUP(SUM(B11/12)*5,2) -> 81.25 | J11: =ROUNDUP(SUM(B11/12)*4,2) -> 65 | K11: =ROUNDUP(SUM(B11/12)*3,2) -> 48.75 | L11: =ROUNDUP(SUM(B11/12)*2,2) -> 32.5 | M11: =ROUNDUP(SUM(B11/12)*1,2) -> 16.25
A12: State PA | B12: 105 | C12: =ROUNDUP(SUM(B12/12)*11,2) -> 96.25 | D12: =ROUNDUP(SUM(B12/12)*10,2) -> 87.5 | E12: =ROUNDUP(SUM(B12/12)*9,2) -> 78.75 | F12: =ROUNDUP(SUM(B12/12)*8,2) -> 70 | G12: =ROUNDUP(SUM(B12/12)*7,2) -> 61.25 | H12: =ROUNDUP(SUM(B12/12)*6,2) -> 52.5 | I12: =ROUNDUP(SUM(B12/12)*5,2) -> 43.75 | J12: =ROUNDUP(SUM(B12/12)*4,2) -> 35 | K12: =ROUNDUP(SUM(B12/12)*3,2) -> 26.25 | L12: =ROUNDUP(SUM(B12/12)*2,2) -> 17.5 | M12: =ROUNDUP(SUM(B12/12)*1,2) -> 8.75
A13: National | B13: =SUM(120+35) -> 155 | C13: =ROUNDUP(SUM((B13-35)/12)*11,2)+35 -> 145 | D13: =ROUNDUP(SUM((B13-35)/12)*10,2)+35 -> 135 | E13: =ROUNDUP(SUM((B13-35)/12)*9,2)+35 -> 125 | F13: =ROUNDUP(SUM((B13-35)/12)*8,2)+35 -> 115 | G13: =ROUNDUP(SUM((B13-35)/12)*7,2)+35 -> 105 | H13: =ROUNDUP(SUM((B13-35)/12)*6,2)+35 -> 95 | I13: =ROUNDUP(SUM((B13-35)/12)*5,2)+35 -> 85 | J13: =ROUNDUP(SUM((B13-35)/12)*4,2)+35 -> 75 | K13: =ROUNDUP(SUM((B13-35)/12)*3,2)+35 -> 65 | L13: =ROUNDUP(SUM((B13-35)/12)*2,2)+35 -> 55 | M13: =ROUNDUP(SUM((B13-35)/12)*1,2)+35 -> 45
A14: Total PA | B14: =SUM(B11:B13) -> 455 | C14: =SUM(C11:C13) -> 420 | D14: 385 | E14: 350 | F14: 315 | G14: 280 | H14: 245 | I14: 210 | J14: 175 | K14: 140 | L14: 105 | M14: 70
A15: Primary Members can join the MD Association as Secondary State Member for $105.
A17: SECONDARY OUT-OF-STATE REALTOR MEMBERSHIP DUES SCHEDULE
B18: Jan | C18: Feb | D18: March | E18: April | F18: May | G18: June | H18: July | I18: August | J18: Sept | K18: October | L18: Nov | M18: Dec
A19: LOCAL | B19: 195 | C19: =ROUNDUP(SUM(B19/12)*11,2) -> 178.75 | D19: =ROUNDUP(SUM(B19/12)*10,2) -> 162.5 | E19: =ROUNDUP(SUM(B19/12)*9,2) -> 146.25 | F19: =ROUNDUP(SUM(B19/12)*8,0) -> 130 | G19: =ROUNDUP(SUM(B19/12)*7,2) -> 113.75 | H19: =ROUNDUP(SUM(B19/12)*6,2) -> 97.5 | I19: =ROUNDUP(SUM(B19/12)*5,2) -> 81.25 | J19: =ROUNDUP(SUM(B19/12)*4,2) -> 65 | K19: =ROUNDUP(SUM(B19/12)*3,2) -> 48.75 | L19: =ROUNDUP(SUM(B19/12)*2,2) -> 32.5 | M19: =ROUNDUP(SUM(B19/12)*1,2) -> 16.25
A20: State MD | B20: 105 | C20: =B20 -> 105 | D20: =B20 -> 105 | E20: =B20 -> 105 | F20: =ROUNDUP(SUM(B20/2),2) -> 52.5 | G20: =ROUNDUP(SUM(B20/2),2) -> 52.5 | H20: =ROUNDUP(SUM(B20/2),2) -> 52.5 | I20: =ROUNDUP(SUM(B20/2),2) -> 52.5 | J20: =ROUNDUP(SUM(B20/2),2) -> 52.5 | K20: =ROUNDUP(SUM(B20/2),2) -> 52.5 | L20: 0 | M20: 0
A21: Total MD | B21: =SUM(B19:B20) -> 300 | C21: =SUM(C19:C20) -> 283.75 | D21: 267.5 | E21: 251.25 | F21: 182.5 | G21: 166.25 | H21: 150 | I21: 133.75 | J21: 117.5 | K21: 101.25 | L21: 32.5 | M21: 16.25
B23: Jan | C23: Feb | D23: March | E23: April | F23: May | G23: June | H23: July | I23: August | J23: Sept | K23: October | L23: Nov | M23: Dec
A24: LOCAL | B24: 195 | C24: =ROUNDUP(SUM(B24/12)*11,2) -> 178.75 | D24: =ROUNDUP(SUM(B24/12)*10,2) -> 162.5 | E24: =ROUNDUP(SUM(B24/12)*9,2) -> 146.25 | F24: =ROUNDUP(SUM(B24/12)*8,0) -> 130 | G24: =ROUNDUP(SUM(B24/12)*7,2) -> 113.75 | H24: =ROUNDUP(SUM(B24/12)*6,2) -> 97.5 | I24: =ROUNDUP(SUM(B24/12)*5,2) -> 81.25 | J24: =ROUNDUP(SUM(B24/12)*4,2) -> 65 | K24: =ROUNDUP(SUM(B24/12)*3,2) -> 48.75 | L24: =ROUNDUP(SUM(B24/12)*2,2) -> 32.5 | M24: =ROUNDUP(SUM(B24/12)*1,2) -> 16.25
A25: State PA | B25: 105 | C25: =ROUNDUP(SUM(B25/12)*11,2) -> 96.25 | D25: =ROUNDUP(SUM(B25/12)*10,2) -> 87.5 | E25: =ROUNDUP(SUM(B25/12)*9,2) -> 78.75 | F25: =ROUNDUP(SUM(B25/12)*8,2) -> 70 | G25: =ROUNDUP(SUM(B25/12)*7,2) -> 61.25 | H25: =ROUNDUP(SUM(B25/12)*6,2) -> 52.5 | I25: =ROUNDUP(SUM(B25/12)*5,2) -> 43.75 | J25: =ROUNDUP(SUM(B25/12)*4,2) -> 35 | K25: =ROUNDUP(SUM(B25/12)*3,2) -> 26.25 | L25: =ROUNDUP(SUM(B25/12)*2,2) -> 17.5 | M25: =ROUNDUP(SUM(B25/12)*1,2) -> 8.75
A26: Total PA | B26: =SUM(B24:B25) -> 300 | C26: =SUM(C24:C25) -> 275 | D26: 250 | E26: 225 | F26: 200 | G26: 175 | H26: 150 | I26: 125 | J26: 100 | K26: 75 | L26: 50 | M26: 25
A28: PRIMARY AFFILIATE (not required to join state)
B29: Jan | C29: Feb | D29: March | E29: April | F29: May | G29: June | H29: July | I29: August | J29: Sept | K29: October | L29: Nov | M29: Dec
A30: LOCAL | B30: 195 | C30: =ROUNDUP(SUM(B30/12)*11,2) -> 178.75 | D30: =ROUNDUP(SUM(B30/12)*10,2) -> 162.5 | E30: =ROUNDUP(SUM(B30/12)*9,2) -> 146.25 | F30: =ROUNDUP(SUM(B30/12)*8,0) -> 130 | G30: =ROUNDUP(SUM(B30/12)*7,2) -> 113.75 | H30: =ROUNDUP(SUM(B30/12)*6,2) -> 97.5 | I30: =ROUNDUP(SUM(B30/12)*5,2) -> 81.25 | J30: =ROUNDUP(SUM(B30/12)*4,2) -> 65 | K30: =ROUNDUP(SUM(B30/12)*3,2) -> 48.75 | L30: =ROUNDUP(SUM(B30/12)*2,2) -> 32.5 | M30: =ROUNDUP(SUM(B30/12)*1,2) -> 16.25
A31: State MD | B31: 181 | C31: =B31 -> 181 | D31: =B31 -> 181 | E31: =B31 -> 181 | F31: =ROUNDUP(SUM(B31/2),2) -> 90.5 | G31: =ROUNDUP(SUM(B31/2),2) -> 90.5 | H31: =ROUNDUP(SUM(B31/2),2) -> 90.5 | I31: =ROUNDUP(SUM(B31/2),2) -> 90.5 | J31: =ROUNDUP(SUM(B31/2),2) -> 90.5 | K31: =ROUNDUP(SUM(B31/2),2) -> 90.5 | L31: 0 | M31: 0
A32: Total MD | B32: =SUM(B30+B31) -> 376 | C32: 359.75 | D32: 343.5 | E32: 327.25 | F32: 220.5 | G32: 204.25 | H32: 188 | I32: 171.75 | J32: 155.5 | K32: 139.25 | L32: 32.5 | M32: 16.25
B34: Jan | C34: Feb | D34: March | E34: April | F34: May | G34: June | H34: July | I34: August | J34: Sept | K34: October | L34: Nov | M34: Dec
A35: LOCAL | B35: 195 | C35: =ROUNDUP(SUM(B35/12)*11,2) -> 178.75 | D35: =ROUNDUP(SUM(B35/12)*10,2) -> 162.5 | E35: =ROUNDUP(SUM(B35/12)*9,2) -> 146.25 | F35: =ROUNDUP(SUM(B35/12)*8,0) -> 130 | G35: =ROUNDUP(SUM(B35/12)*7,2) -> 113.75 | H35: =ROUNDUP(SUM(B35/12)*6,2) -> 97.5 | I35: =ROUNDUP(SUM(B35/12)*5,2) -> 81.25 | J35: =ROUNDUP(SUM(B35/12)*4,2) -> 65 | K35: =ROUNDUP(SUM(B35/12)*3,2) -> 48.75 | L35: =ROUNDUP(SUM(B35/12)*2,2) -> 32.5 | M35: =ROUNDUP(SUM(B35/12)*1,2) -> 16.25
A36: State PA | B36: 60 | C36: =B36 -> 60 | D36: =C36 -> 60 | E36: 60 | F36: 60 | G36: 60 | H36: 60 | I36: 60 | J36: 60 | K36: 60 | L36: 60 | M36: 60
A37: Total PA | B37: =SUM(B35:B36) -> 255 | C37: =SUM(C35:C36) -> 238.75 | D37: 222.5 | E37: 206.25 | F37: 190 | G37: 173.75 | H37: 157.5 | I37: 141.25 | J37: 125 | K37: 108.75 | L37: 92.5 | M37: 76.25
A39: Primary Affiliates have the option not to belong to State; however, PMRAR encourages Affiliates to join the State to receive their benefits as well.
A41: Reinstatement fee of $80.00 is applied for after 30 days from termination of membership up to one year.
A42: One Time Application Fee: (Membership dues must be paid at time of submittal of application) | M42: 160
B43: NOTE: The application fee is a one-time fee unless you drop membership for over one year.
A44: Firm Fee: (one time fee) | M44: 350
A45: Branch Fee: (one time fee) | M45: 100
A46: Member/Office License Change Fee | M46: 10
A48: Brokers Assessment of non-members: For those agents joining a “REALTOR” member office,
A49: who do not join the Association, an assessment is due from the Broker and must be paid as soon as that agent joins the office.
A50: A non-member is not permitted to use the term REALTOR, the “R” logo or receive any of the benefits from any of the REALTOR Associations.
A51: An assessment is equal to a REALTOR member's dues at the time the non-member should have been added to the roster.

Sheet Affiliate
A1: INDIVIDUAL AFFILIATE MEMBERS BENEFIT PRICING
B2: Jan | C2: Feb | D2: March | E2: April | F2: May | G2: June | H2: July | I2: August | J2: Sept | K2: October | L2: Nov | M2: Dec
A3: Bronze | B3: 195 | C3: =ROUNDUP(SUM(B3/12)*11,2) -> 178.75 | D3: =ROUNDUP(SUM(B3/12)*10,2) -> 162.5 | E3: =ROUNDUP(SUM(B3/12)*9,2) -> 146.25 | F3: =ROUNDUP(SUM(B3/12)*8,0) -> 130 | G3: =ROUNDUP(SUM(B3/12)*7,2) -> 113.75 | H3: =ROUNDUP(SUM(B3/12)*6,2) -> 97.5 | I3: =ROUNDUP(SUM(B3/12)*5,2) -> 81.25 | J3: =ROUNDUP(SUM(B3/12)*4,2) -> 65 | K3: =ROUNDUP(SUM(B3/12)*3,2) -> 48.75 | L3: =ROUNDUP(SUM(B3/12)*2,2) -> 32.5 | M3: =ROUNDUP(SUM(B3/12)*1,2) -> 16.25
A4: Silver | B4: 350 | C4: 320.84 | D4: 291.67 | E4: 262.5 | F4: 234 | G4: 204.17 | H4: 175 | I4: 145.84 | J4: 116.67 | K4: 87.5 | L4: 58.34 | M4: 29.17
A5: Gold | B5: 500 | C5: 458.34 | D5: 416.67 | E5: 375 | F5: 334 | G5: 291.67 | H5: 250 | I5: 208.34 | J5: 166.67 | K5: 125 | L5: 83.34 | M5: 41.67
A6: Platinum | B6: 1000 | C6: =ROUNDUP(SUM(B6/12)*11,2) -> 916.67 | D6: =ROUNDUP(SUM(B6/12)*10,2) -> 833.34 | E6: =ROUNDUP(SUM(B6/12)*9,2) -> 750 | F6: =ROUNDUP(SUM(B6/12)*8,0) -> 667 | G6: =ROUNDUP(SUM(B6/12)*7,2) -> 583.34 | H6: =ROUNDUP(SUM(B6/12)*6,2) -> 500 | I6: =ROUNDUP(SUM(B6/12)*5,2) -> 416.67 | J6: =ROUNDUP(SUM(B6/12)*4,2) -> 333.34 | K6: =ROUNDUP(SUM(B6/12)*3,2) -> 250 | L6: =ROUNDUP(SUM(B6/12)*2,2) -> 166.67 | M6: =ROUNDUP(SUM(B6/12)*1,2) -> 83.34
A8: Optional State Membership MAR
A10: CORPORATE AFFILIATE MEMBERS BENEFIT PRICING
B11: Jan | C11: Feb | D11: March | E11: April | F11: May | G11: June | H11: July | I11: August | J11: Sept | K11: October | L11: Nov | M11: Dec
A12: Bronze | B12: 350 | C12: =ROUNDUP(SUM(B12/12)*11,2) -> 320.84 | D12: =ROUNDUP(SUM(B12/12)*10,2) -> 291.67 | E12: =ROUNDUP(SUM(B12/12)*9,2) -> 262.5 | F12: =ROUNDUP(SUM(B12/12)*8,0) -> 234 | G12: =ROUNDUP(SUM(B12/12)*7,2) -> 204.17 | H12: =ROUNDUP(SUM(B12/12)*6,2) -> 175 | I12: =ROUNDUP(SUM(B12/12)*5,2) -> 145.84 | J12: =ROUNDUP(SUM(B12/12)*4,2) -> 116.67 | K12: =ROUNDUP(SUM(B12/12)*3,2) -> 87.5 | L12: =ROUNDUP(SUM(B12/12)*2,2) -> 58.34 | M12: =ROUNDUP(SUM(B12/12)*1,2) -> 29.17
A13: Silver | B13: 750 | C13: 687.5 | D13: 625 | E13: 562.5 | F13: 500 | G13: 437.5 | H13: 375 | I13: 312.5 | J13: 250 | K13: 187.5 | L13: 125 | M13: 62.5
A14: Gold | B14: 1000 | C14: 916.67 | D14: 833.34 | E14: 750 | F14: 667 | G14: 583.34 | H14: 500 | I14: 416.67 | J14: 333.34 | K14: 250 | L14: 166.67 | M14: 83.34
A15: Platinum | B15: 1500 | C15: =ROUNDUP(SUM(B15/12)*11,2) -> 1375 | D15: =ROUNDUP(SUM(B15/12)*10,2) -> 1250 | E15: =ROUNDUP(SUM(B15/12)*9,2) -> 1125 | F15: =ROUNDUP(SUM(B15/12)*8,0) -> 1000 | G15: =ROUNDUP(SUM(B15/12)*7,2) -> 875 | H15: =ROUNDUP(SUM(B15/12)*6,2) -> 750 | I15: =ROUNDUP(SUM(B15/12)*5,2) -> 625 | J15: =ROUNDUP(SUM(B15/12)*4,2) -> 500 | K15: =ROUNDUP(SUM(B15/12)*3,2) -> 375 | L15: =ROUNDUP(SUM(B15/12)*2,2) -> 250 | M15: =ROUNDUP(SUM(B15/12)*1,2) -> 125
A17: Optional State Membership PAR | B17: 60

Sheet 2023
A1: 2024 Dues Schedule
A2: ~ An application fee of $250 must be paid along with REALTOR® membership dues, at the time of application ~
A4: Maryland - Prorated REALTOR® Dues Fees (for those primarily licensed in MD)
A5: PRIMARY MARYLAND REALTOR® MEMBERSHIP PRORATED DUES SCHEDULE
B6: Jan | C6: Feb | D6: March | E6: April | F6: May | G6: June | H6: July | I6: Aug | J6: Sept | K6: Oct | L6: Nov | M6: Dec
A7: Local (Pen-Mar) Dues | B7: 360 | C7: 330 | D7: 300 | E7: 270 | F7: 240 | G7: 210 | H7: 180 | I7: 150 | J7: 120 | K7: 90 | L7: 60 | M7: 30
A8: State (MD) Dues | B8: 232 | C8: 232 | D8: 232 | E8: 232 | F8: 116 | G8: 116 | H8: 116 | I8: 116 | J8: 116 | K8: 116 | L8: 116 | M8: 116
A9: NAR Consumer Advertising Campaign | B9: 45 | C9: 45 | D9: 45 | E9: 45 | F9: 45 | G9: 45 | H9: 45 | I9: 45 | J9: 45 | K9: 45 | L9: 45 | M9: 45
A10: National (NAR) Dues | B10: 156 | C10: 143 | D10: 130 | E10: 117 | F10: 104 | G10: 91 | H10: 78 | I10: 65 | J10: 52 | K10: 39 | L10: 26 | M10: 13
A11: Total MD | B11: =SUM(B7:B10) -> 793 | C11: =SUM(C7:C10) -> 750 | D11: 707 | E11: 664 | F11: 505 | G11: 462 | H11: 419 | I11: 376 | J11: 333 | K11: 290 | L11: 247 | M11: 204
A12: *The non-deductible portion of MR 2023 dues attributive to lobbying is $21, the non-deductible portion of NAR 2023 dues is $51.00
A14: Pennsylvania - Prorated REALTOR® Dues Fees (for those primarily licensed in PA)
A15: PRIMARY PENNSYLVANIA REALTOR® MEMBERSHIP PRORATED DUES SCHEDULE
B16: Jan | C16: Feb | D16: March | E16: April | F16: May | G16: June | H16: July | I16: Aug | J16: Sept | K16: Oct | L16: Nov | M16: Dec
A17: Local (Pen-Mar) Dues | B17: 360 | C17: 330 | D17: 300 | E17: 270 | F17: 240 | G17: 210 | H17: 180 | I17: 150 | J17: 120 | K17: 90 | L17: 60 | M17: 30
A18: State (PA) Dues | B18: 150 | C18: 137.5 | D18: =ROUNDUP(SUM(B18/12)*10,2) -> 125 | E18: =ROUNDUP(SUM(B18/12)*9,2) -> 112.5 | F18: =ROUNDUP(SUM(B18/12)*8,2) -> 100 | G18: =ROUNDUP(SUM(B18/12)*7,2) -> 87.5 | H18: =ROUNDUP(SUM(B18/12)*6,2) -> 75 | I18: =ROUNDUP(SUM(B18/12)*5,2) -> 62.5 | J18: =ROUNDUP(SUM(B18/12)*4,2) -> 50 | K18: =ROUNDUP(SUM(B18/12)*3,2) -> 37.5 | L18: =ROUNDUP(SUM(B18/12)*2,2) -> 25 | M18: =ROUNDUP(SUM(B18/12)*1,2) -> 12.5
A19: NAR Consumer Advertising Campaign | B19: 45 | C19: 45 | D19: 45 | E19: 45 | F19: 45 | G19: 45 | H19: 45 | I19: 45 | J19: 45 | K19: 45 | L19: 45 | M19: 45
A20: National (NAR) Dues | B20: 156 | C20: 143 | D20: 130 | E20: 117 | F20: 104 | G20: 91 | H20: 78 | I20: 65 | J20: 52 | K20: 39 | L20: 26 | M20: 13
A21: Total PA (Renewing Members) | B21: =SUM(B17:B20) -> 711 | C21: =SUM(C17:C20) -> 655.5 | D21: 600 | E21: 544.5 | F21: 489 | G21: 433.5 | H21: 378 | I21: 322.5 | J21: 267 | K21: 211.5 | L21: 156 | M21: 100.5
A22: *PA Capital Investment Fee (one-time fee, New Members only) | B22: 100 | C22: 100 | D22: 100 | E22: 100 | F22: 100 | G22: 100 | H22: 100 | I22: 100 | J22: 100 | K22: 100 | L22: 100 | M22: 100
A23: Total PA (New Members) | B23: =SUM(B21+B22) -> 811 | C23: 755.5 | D23: 700 | E23: 644.5 | F23: 589 | G23: 533.5 | H23: 478 | I23: 422.5 | J23: 367 | K23: 311.5 | L23: 256 | M23: 200.5
A24: *The non-deductible portion of PAR 2023 dues attributive to lobbying is $7.50, the non-deductible portion of NAR 2023 dues is $51.00
A26: Secondary REALTOR® Membership Prorated Dues Fees (only applies to those who have a primary membership at another local REALTOR Board)
A27: *One Time Application Fee of $125 will be added to Dues | B27: Jan | C27: Feb | D27: March | E27: April | F27: May | G27: June | H27: July | I27: Aug | J27: Sept | K27: Oct | L27: Nov | M27: Dec
A28: Total Secondary Member Dues | B28: 360 | C28: 330 | D28: 300 | E28: 270 | F28: 240 | G28: 210 | H28: 180 | I28: 150 | J28: 120 | K28: 90 | L28: 60 | M28: 30
A30: Affiliate Membership Dues Fees (A one-time application fee of $125 must be paid by all new Affiliate Members at time of application)
B31: Jan | C31: Feb | D31: March | E31: April | F31: May | G31: June | H31: July | I31: Aug | J31: Sept | K31: Oct | L31: Nov | M31: Dec
A32: Individual Affiliate Membership | B32: 150 | C32: 137.5 | D32: 125 | E32: 112.5 | F32: 100 | G32: 87.5 | H32: 75 | I32: 62.5 | J32: 50 | K32: 37.5 | L32: 25 | M32: 12.5
A33: Added Members to Affiliate Company (per person) | B33: 75 | C33: 75 | D33: 75 | E33: 75 | F33: 75 | G33: 75 | H33: 75 | I33: 75 | J33: 75 | K33: 75 | L33: 75 | M33: 75
A34: *Affiliates are non-REALTOR® members of the association

Sheet Sheet1

Sheet Sheet2
